[Event "*** Titled Tuesday Blitz"]
[Site "Chess.com"]
[Date "2021.03.02"]
[Round "8"]
[White "GUST_b"]
[Black "lagedema"]
[Result "0-1"]
[WhiteElo "2370"]
[BlackElo "2521"]
[TimeControl "180+1"]
[EndTime "11:29:26 PST"]
[Termination "lagedema won by resignation"]

1. Nf3 {[%clk 0:03:00.9]} 1... d5 {[%clk 0:02:59.2]} 2. c4 {[%clk 0:03:01]} 2...
c6 {[%clk 0:02:58.7]} 3. g3 {[%clk 0:03:01.1]} 3... Nf6 {[%clk 0:02:59.2]} 4.
Bg2 {[%clk 0:03:01.7]} 4... Bf5 {[%clk 0:02:59]} 5. cxd5 {[%clk 0:03:01.3]} 5...
cxd5 {[%clk 0:02:57.9]} 6. Qb3 {[%clk 0:03:02]} 6... Qb6 {[%clk 0:02:57.2]} 7.
Nc3 {[%clk 0:03:02.1]} 7... e6 {[%clk 0:02:56.6]} 8. d3 {[%clk 0:03:02.6]} 8...
Be7 {[%clk 0:02:49.4]} 9. Be3 {[%clk 0:03:02.4]} 9... Qxb3 {[%clk 0:02:49]} 10.
axb3 {[%clk 0:03:03.3]} 10... Nc6 {[%clk 0:02:49]} 11. O-O {[%clk 0:02:59.5]}
11... O-O {[%clk 0:02:49.3]} 12. Nd4 {[%clk 0:02:58.7]} 12... Nxd4 {[%clk
0:02:46.5]} 13. Bxd4 {[%clk 0:02:59.6]} 13... a6 {[%clk 0:02:47]} 14. e4 {[%clk
0:02:59.8]} 14... dxe4 {[%clk 0:02:46.5]} 15. dxe4 {[%clk 0:03:00.7]} 15... Bg6
{[%clk 0:02:37.5]} 16. e5 {[%clk 0:03:01.1]} 16... Nd7 {[%clk 0:02:36.1]} 17.
Bxb7 {[%clk 0:02:59.5]} 17... Rab8 {[%clk 0:02:36.6]} 18. Bxa6 {[%clk
0:02:55.2]} 18... Rxb3 {[%clk 0:02:30.7]} 19. Ra2 {[%clk 0:02:55.5]} 19... Nc5
{[%clk 0:02:29.4]} 20. Be2 {[%clk 0:02:47]} 20... h5 {[%clk 0:02:22.3]} 21. h4
{[%clk 0:02:29.7]} 21... Rd8 {[%clk 0:02:19.9]} 22. Be3 {[%clk 0:02:24.6]} 22...
Rdb8 {[%clk 0:02:13.9]} 23. Nd1 {[%clk 0:02:12.4]} 23... Ne4 {[%clk 0:02:07]}
24. Ra7 {[%clk 0:02:11.2]} 24... Bf8 {[%clk 0:02:04]} 25. Bc4 {[%clk 0:02:07.9]}
25... R3b4 {[%clk 0:01:55.7]} 26. b3 {[%clk 0:02:08.3]} 26... Nc5 {[%clk
0:01:49.6]} 27. Bxc5 {[%clk 0:02:05.2]} 27... Bxc5 {[%clk 0:01:50.5]} 28. Rc7
{[%clk 0:02:04.9]} 28... Bd4 {[%clk 0:01:49.9]} 29. Re1 {[%clk 0:02:04.6]} 29...
Rd8 {[%clk 0:01:45]} 30. Kh2 {[%clk 0:01:58.7]} 30... Bc2 {[%clk 0:01:42.3]} 31.
Bxe6 {[%clk 0:01:51.7]} 31... Bxb3 {[%clk 0:01:29.5]} 32. Bxb3 {[%clk
0:01:48.4]} 32... Rxb3 {[%clk 0:01:30.4]} 33. e6 {[%clk 0:01:41.8]} 33... fxe6
{[%clk 0:01:30]} 34. Rxe6 {[%clk 0:01:42.7]} 34... Rd3 {[%clk 0:01:09.7]} 35.
Ne3 {[%clk 0:01:35.2]} 35... Rf8 {[%clk 0:01:09.5]} 36. Kh3 {[%clk 0:01:21.5]}
36... Rxf2 {[%clk 0:01:03.6]} 37. Nd5 {[%clk 0:01:17.4]} 37... Rd1 {[%clk
0:00:57.1]} 38. g4 {[%clk 0:00:32.7]} 38... Rd3+ {[%clk 0:00:53.5]} 39. Ne3
{[%clk 0:00:32]} 39... Bxe3 {[%clk 0:00:43.6]} 40. Rc8+ {[%clk 0:00:31.6]} 40...
Kf7 {[%clk 0:00:41.6]} 41. Ree8 {[%clk 0:00:20.4]} 41... Bf4+ {[%clk 0:00:39.3]}
0-1

[Event "*** Titled Tuesday Blitz"]
[Site "Chess.com"]
[Date "2021.03.02"]
[Round "8"]
[White "Kostukov_Alex"]
[Black "woodhy"]
[Result "0-1"]
[WhiteElo "2317"]
[BlackElo "2461"]
[TimeControl "180+1"]
[EndTime "11:29:29 PST"]
[Termination "woodhy won on time"]

1. g3 {[%clk 0:03:00]} 1... e6 {[%clk 0:03:00.9]} 2. Bg2 {[%clk 0:02:59]} 2...
Nf6 {[%clk 0:03:01.8]} 3. d3 {[%clk 0:02:58.1]} 3... c5 {[%clk 0:03:02]} 4. e4
{[%clk 0:02:57.9]} 4... Nc6 {[%clk 0:03:02]} 5. Nf3 {[%clk 0:02:49.6]} 5... d5
{[%clk 0:03:02]} 6. exd5 {[%clk 0:02:46]} 6... Nxd5 {[%clk 0:03:00]} 7. O-O
{[%clk 0:02:45.5]} 7... Be7 {[%clk 0:03:00.4]} 8. Nc3 {[%clk 0:02:38.1]} 8...
O-O {[%clk 0:02:59.5]} 9. Re1 {[%clk 0:02:36.6]} 9... Bf6 {[%clk 0:02:59.1]} 10.
Bd2 {[%clk 0:02:36]} 10... b6 {[%clk 0:02:58.4]} 11. Rb1 {[%clk 0:02:29.3]}
11... Bb7 {[%clk 0:02:57.6]} 12. Ne4 {[%clk 0:02:24.8]} 12... Be7 {[%clk
0:02:55.1]} 13. a3 {[%clk 0:02:24.3]} 13... Qc7 {[%clk 0:02:51.9]} 14. c4 {[%clk
0:02:22.2]} 14... Nf6 {[%clk 0:02:50.4]} 15. Bf4 {[%clk 0:02:18.5]} 15... Qd7
{[%clk 0:02:48.3]} 16. Qc2 {[%clk 0:02:08.8]} 16... Rad8 {[%clk 0:02:47.1]} 17.
Rbd1 {[%clk 0:02:07.6]} 17... Qc8 {[%clk 0:02:46.8]} 18. Nxf6+ {[%clk
0:01:38.8]} 18... Bxf6 {[%clk 0:02:45.6]} 19. h4 {[%clk 0:01:32.3]} 19... Nd4
{[%clk 0:02:41.1]} 20. Nxd4 {[%clk 0:01:31]} 20... Bxd4 {[%clk 0:02:42]} 21.
Bxb7 {[%clk 0:01:17.5]} 21... Qxb7 {[%clk 0:02:42.9]} 22. Be5 {[%clk 0:01:09.4]}
22... Qf3 {[%clk 0:02:31.3]} 23. Bxd4 {[%clk 0:01:08.3]} 23... Rxd4 {[%clk
0:02:32.2]} 24. Re3 {[%clk 0:01:07]} 24... Qf5 {[%clk 0:02:28.7]} 25. Qe2 {[%clk
0:01:05.4]} 25... Rfd8 {[%clk 0:02:28.8]} 26. Kg2 {[%clk 0:00:49]} 26... h6
{[%clk 0:02:26.9]} 27. Qf3 {[%clk 0:00:47.1]} 27... Qxf3+ {[%clk 0:02:24.1]} 28.
Kxf3 {[%clk 0:00:46.9]} 28... Rxc4 {[%clk 0:02:25]} 29. dxc4 {[%clk 0:00:36.9]}
29... Rxd1 {[%clk 0:02:25.9]} 30. Ke2 {[%clk 0:00:36.8]} 30... Rd4 {[%clk
0:02:25]} 31. b3 {[%clk 0:00:33.6]} 31... Kf8 {[%clk 0:02:25.3]} 32. a4 {[%clk
0:00:29.8]} 32... Ke7 {[%clk 0:02:25.1]} 33. Rc3 {[%clk 0:00:28.2]} 33... Kd6
{[%clk 0:02:24.6]} 34. Rc1 {[%clk 0:00:28.2]} 34... f5 {[%clk 0:02:24.6]} 35.
Ke3 {[%clk 0:00:28.1]} 35... g5 {[%clk 0:02:23.5]} 36. hxg5 {[%clk 0:00:27.5]}
36... hxg5 {[%clk 0:02:24.4]} 37. Rh1 {[%clk 0:00:27.4]} 37... a6 {[%clk
0:02:19.9]} 38. Rh7 {[%clk 0:00:24.2]} 38... b5 {[%clk 0:02:20]} 39. Ra7 {[%clk
0:00:18.9]} 39... bxc4 {[%clk 0:02:18.2]} 40. Rxa6+ {[%clk 0:00:19]} 40... Kd7
{[%clk 0:02:17.6]} 41. bxc4 {[%clk 0:00:19]} 41... Rxc4 {[%clk 0:02:17.2]} 42.
a5 {[%clk 0:00:19.6]} 42... Ra4 {[%clk 0:02:16.1]} 43. Ra7+ {[%clk 0:00:19.5]}
43... Kd6 {[%clk 0:02:16.3]} 44. a6 {[%clk 0:00:19.5]} 44... Ra3+ {[%clk
0:02:15.9]} 45. Kd2 {[%clk 0:00:19.1]} 45... Ke5 {[%clk 0:02:02.2]} 46. Ra8
{[%clk 0:00:18.4]} 46... Ke4 {[%clk 0:02:02]} 47. a7 {[%clk 0:00:12.8]} 47... e5
{[%clk 0:01:59.4]} 48. Rc8 {[%clk 0:00:08.7]} 48... Rxa7 {[%clk 0:01:58.5]} 49.
Rxc5 {[%clk 0:00:08.8]} 49... Ra2+ {[%clk 0:01:57.5]} 50. Ke1 {[%clk 0:00:08.2]}
50... g4 {[%clk 0:01:55.9]} 51. Kf1 {[%clk 0:00:07.2]} 51... Ra3 {[%clk
0:01:52.9]} 52. Rc4+ {[%clk 0:00:06.8]} 52... Kf3 {[%clk 0:01:52.1]} 53. Rc1
{[%clk 0:00:05.7]} 53... f4 {[%clk 0:01:49.5]} 54. gxf4 {[%clk 0:00:05.1]} 54...
exf4 {[%clk 0:01:49.6]} 55. Kg1 {[%clk 0:00:05.3]} 55... Rd3 {[%clk 0:01:49.1]}
56. Rf1 {[%clk 0:00:04.1]} 56... Ke2 {[%clk 0:01:44.2]} 57. Kg2 {[%clk
0:00:03.2]} 57... Rd1 {[%clk 0:01:40.1]} 58. Rxd1 {[%clk 0:00:02.8]} 58... Kxd1
{[%clk 0:01:41]} 59. Kf1 {[%clk 0:00:03.4]} 59... f3 {[%clk 0:01:36.8]} 60. Kg1
{[%clk 0:00:01]} 60... Ke1 {[%clk 0:01:37.7]} 0-1

[Event "*** Titled Tuesday Blitz"]
[Site "Chess.com"]
[Date "2021.03.02"]
[Round "8"]
[White "Aisen1011"]
[Black "schondeln"]
[Result "1-0"]
[WhiteElo "2243"]
[BlackElo "2382"]
[TimeControl "180+1"]
[EndTime "11:29:29 PST"]
[Termination "Aisen1011 won on time"]

1. d4 {[%clk 0:03:00.3]} 1... d5 {[%clk 0:02:58.2]} 2. c4 {[%clk 0:02:59.7]}
2... c6 {[%clk 0:02:58.3]} 3. Nf3 {[%clk 0:02:58.5]} 3... Nf6 {[%clk 0:02:58.6]}
4. Nc3 {[%clk 0:02:56.7]} 4... dxc4 {[%clk 0:02:58.8]} 5. a4 {[%clk 0:02:55.9]}
5... Bf5 {[%clk 0:02:58.2]} 6. e3 {[%clk 0:02:54.2]} 6... e6 {[%clk 0:02:58.1]}
7. Bxc4 {[%clk 0:02:54.3]} 7... Bb4 {[%clk 0:02:58.7]} 8. O-O {[%clk 0:02:53.7]}
8... Nbd7 {[%clk 0:02:58.8]} 9. Qb3 {[%clk 0:02:53.7]} 9... a5 {[%clk
0:02:44.8]} 10. Na2 {[%clk 0:02:52.4]} 10... Be7 {[%clk 0:02:36.6]} 11. Bd2
{[%clk 0:02:50.4]} 11... Qb6 {[%clk 0:02:26]} 12. Rac1 {[%clk 0:02:42.9]} 12...
Ne4 {[%clk 0:02:22.1]} 13. Be1 {[%clk 0:02:39.2]} 13... Qxb3 {[%clk 0:02:09.2]}
14. Bxb3 {[%clk 0:02:39.4]} 14... O-O {[%clk 0:02:09.1]} 15. Nc3 {[%clk
0:02:36.1]} 15... h6 {[%clk 0:02:03.3]} 16. Nxe4 {[%clk 0:02:27.3]} 16... Bxe4
{[%clk 0:02:04.2]} 17. Bc3 {[%clk 0:02:27.3]} 17... Rfd8 {[%clk 0:01:30.2]} 18.
Rfd1 {[%clk 0:02:27.1]} 18... Bd6 {[%clk 0:01:23.4]} 19. Nd2 {[%clk 0:02:26.8]}
19... Bd5 {[%clk 0:01:14.9]} 20. e4 {[%clk 0:02:23.8]} 20... Bxb3 {[%clk
0:01:14.4]} 21. Nxb3 {[%clk 0:02:24.7]} 21... b6 {[%clk 0:00:57.9]} 22. d5
{[%clk 0:02:13.7]} 22... cxd5 {[%clk 0:00:55.5]} 23. exd5 {[%clk 0:02:14.6]}
23... exd5 {[%clk 0:00:45.4]} 24. Rxd5 {[%clk 0:02:14.4]} 24... Nc5 {[%clk
0:00:45.7]} 25. Rcd1 {[%clk 0:02:06.5]} 25... Bxh2+ {[%clk 0:00:19.8]} 26. Kxh2
{[%clk 0:02:07.4]} 26... Rxd5 {[%clk 0:00:19.5]} 27. Rxd5 {[%clk 0:02:08.3]}
27... Nxb3 {[%clk 0:00:20.1]} 28. Rb5 {[%clk 0:02:02.8]} 28... Nc5 {[%clk
0:00:20]} 29. b3 {[%clk 0:02:01.8]} 29... Nd7 {[%clk 0:00:17.5]} 30. Rd5 {[%clk
0:02:01]} 30... Ra7 {[%clk 0:00:16.1]} 31. Bd4 {[%clk 0:01:59.3]} 31... Rb7
{[%clk 0:00:16]} 32. Rb5 {[%clk 0:01:51.3]} 32... f6 {[%clk 0:00:12.6]} 33. b4
{[%clk 0:01:51.3]} 33... axb4 {[%clk 0:00:13]} 34. a5 {[%clk 0:01:51.6]} 34...
Kf7 {[%clk 0:00:08.5]} 35. axb6 {[%clk 0:01:49.8]} 35... Ke6 {[%clk 0:00:08.8]}
36. Rxb4 {[%clk 0:01:50.1]} 36... Kd5 {[%clk 0:00:09.2]} 37. Be3 {[%clk
0:01:50.4]} 37... Kc6 {[%clk 0:00:09.5]} 38. Rc4+ {[%clk 0:01:50.6]} 38... Kd6
{[%clk 0:00:08.2]} 39. Rd4+ {[%clk 0:01:44.7]} 39... Ke6 {[%clk 0:00:08.3]} 40.
Rc4 {[%clk 0:01:43.6]} 40... Kd6 {[%clk 0:00:08.4]} 41. Bf4+ {[%clk 0:01:43.3]}
41... Kd5 {[%clk 0:00:05.9]} 42. Rc7 {[%clk 0:01:40.2]} 42... Rxc7 {[%clk
0:00:05.8]} 43. bxc7 {[%clk 0:01:35.7]} 43... Nb6 {[%clk 0:00:06.1]} 44. Kh3
{[%clk 0:01:32.2]} 44... g5 {[%clk 0:00:04.3]} 45. Be3 {[%clk 0:01:30.2]} 45...
Nc8 {[%clk 0:00:04.1]} 46. Kg4 {[%clk 0:01:28.5]} 46... Ke6 {[%clk 0:00:04.2]}
47. Kh5 {[%clk 0:01:28.3]} 47... Kd7 {[%clk 0:00:04.4]} 48. Kxh6 {[%clk
0:01:28.4]} 48... Kxc7 {[%clk 0:00:04.7]} 49. Kg6 {[%clk 0:01:28.9]} 49... Kd6
{[%clk 0:00:02.1]} 50. Kxf6 {[%clk 0:01:28.4]} 50... g4 {[%clk 0:00:02.6]} 51.
Kf5 {[%clk 0:01:27.9]} 51... Ne7+ {[%clk 0:00:03.3]} 52. Kxg4 {[%clk 0:01:28.2]}
52... Ke6 {[%clk 0:00:03.9]} 53. f4 {[%clk 0:01:28.1]} 53... Nf5 {[%clk
0:00:04.3]} 54. Bf2 {[%clk 0:01:27.8]} 54... Kd5 {[%clk 0:00:04.8]} 55. Kxf5
{[%clk 0:01:27.5]} 1-0

[Event "*** Titled Tuesday Blitz"]
[Site "Chess.com"]
[Date "2021.03.02"]
[Round "8"]
[White "andrewtnb"]
[Black "Das_Virus_2020"]
[Result "1-0"]
[WhiteElo "2329"]
[BlackElo "2444"]
[TimeControl "180+1"]
[EndTime "11:29:34 PST"]
[Termination "andrewtnb won on time"]

1. d4 {[%clk 0:03:00.9]} 1... Nf6 {[%clk 0:02:59.1]} 2. c4 {[%clk 0:03:01.2]}
2... c5 {[%clk 0:02:58.9]} 3. d5 {[%clk 0:02:59.7]} 3... b5 {[%clk 0:02:58.5]}
4. f3 {[%clk 0:02:55.6]} 4... bxc4 {[%clk 0:02:57]} 5. e4 {[%clk 0:02:55.5]}
5... d6 {[%clk 0:02:57.4]} 6. Bxc4 {[%clk 0:02:52.8]} 6... g6 {[%clk 0:02:57.5]}
7. b3 {[%clk 0:02:41.4]} 7... Bg7 {[%clk 0:02:57.1]} 8. Bb2 {[%clk 0:02:41.8]}
8... O-O {[%clk 0:02:56.2]} 9. Nd2 {[%clk 0:02:39.1]} 9... Nbd7 {[%clk
0:02:54.2]} 10. Ne2 {[%clk 0:02:35.4]} 10... Nb6 {[%clk 0:02:53.5]} 11. Qc2
{[%clk 0:02:33.7]} 11... Nxc4 {[%clk 0:02:51.8]} 12. Nxc4 {[%clk 0:02:33.1]}
12... Ba6 {[%clk 0:02:50.9]} 13. O-O {[%clk 0:02:32.2]} 13... Bxc4 {[%clk
0:02:50.4]} 14. bxc4 {[%clk 0:02:29.8]} 14... Rb8 {[%clk 0:02:39.8]} 15. Bc3
{[%clk 0:02:29.2]} 15... Qb6 {[%clk 0:02:29]} 16. Rab1 {[%clk 0:02:14.9]} 16...
Qa6 {[%clk 0:02:28.4]} 17. Bd2 {[%clk 0:02:01.5]} 17... Nd7 {[%clk 0:02:23.6]}
18. Rb3 {[%clk 0:01:54.7]} 18... Rb6 {[%clk 0:02:17.9]} 19. Rfb1 {[%clk
0:01:51.1]} 19... Rfb8 {[%clk 0:02:16.3]} 20. f4 {[%clk 0:01:30.5]} 20... h6
{[%clk 0:01:55.2]} 21. h3 {[%clk 0:01:28]} 21... Qa4 {[%clk 0:01:28.2]} 22. Kh2
{[%clk 0:01:24.3]} 22... Kh7 {[%clk 0:01:25.7]} 23. Ng1 {[%clk 0:01:18]} 23...
Rxb3 {[%clk 0:01:21.5]} 24. axb3 {[%clk 0:01:17.2]} 24... Qa3 {[%clk 0:01:18.4]}
25. Bc3 {[%clk 0:01:08.2]} 25... a5 {[%clk 0:01:01.1]} 26. Bxg7 {[%clk
0:01:04.1]} 26... Kxg7 {[%clk 0:00:59]} 27. Ne2 {[%clk 0:00:54.6]} 27... Qb4
{[%clk 0:00:57.6]} 28. Nc3 {[%clk 0:00:53.1]} 28... Ra8 {[%clk 0:00:28.6]} 29.
Ra1 {[%clk 0:00:49.7]} 29... f6 {[%clk 0:00:22.2]} 30. Nb5 {[%clk 0:00:45.8]}
30... Nb6 {[%clk 0:00:19.3]} 31. Nc7 {[%clk 0:00:45.3]} 31... Ra7 {[%clk
0:00:18.5]} 32. Ne6+ {[%clk 0:00:45]} 32... Kh7 {[%clk 0:00:16.9]} 33. f5 {[%clk
0:00:44.9]} 33... g5 {[%clk 0:00:14.5]} 34. Qd1 {[%clk 0:00:44]} 34... Qc3
{[%clk 0:00:06.8]} 35. Rc1 {[%clk 0:00:38.6]} 35... Qe5+ {[%clk 0:00:06.3]} 36.
Kh1 {[%clk 0:00:38.5]} 36... Nd7 {[%clk 0:00:01.1]} 37. Qh5 {[%clk 0:00:37.2]}
1-0

[Event "*** Titled Tuesday Blitz"]
[Site "Chess.com"]
[Date "2021.03.02"]
[Round "8"]
[White "Problematique_99"]
[Black "Mikhail_Golubev"]
[Result "1-0"]
[WhiteElo "2462"]
[BlackElo "2580"]
[TimeControl "180+1"]
[EndTime "11:29:36 PST"]
[Termination "Problematique_99 won by checkmate"]

1. e4 {[%clk 0:03:00.9]} 1... c5 {[%clk 0:02:59.6]} 2. Nc3 {[%clk 0:03:01.2]}
2... g6 {[%clk 0:02:54.8]} 3. f4 {[%clk 0:02:54.1]} 3... Bg7 {[%clk 0:02:54.5]}
4. Nf3 {[%clk 0:02:54.5]} 4... Nc6 {[%clk 0:02:49.9]} 5. Bb5 {[%clk 0:02:52.5]}
5... Nd4 {[%clk 0:02:47.1]} 6. O-O {[%clk 0:02:51.9]} 6... a6 {[%clk 0:02:39.7]}
7. Bd3 {[%clk 0:02:49.6]} 7... d6 {[%clk 0:02:21.9]} 8. Nxd4 {[%clk 0:02:44.1]}
8... Bxd4+ {[%clk 0:02:18.4]} 9. Kh1 {[%clk 0:02:44.4]} 9... Nf6 {[%clk
0:02:16.4]} 10. Ne2 {[%clk 0:02:36.6]} 10... Bg4 {[%clk 0:01:40.6]} 11. c3
{[%clk 0:02:21.9]} 11... c4 {[%clk 0:01:40]} 12. Bxc4 {[%clk 0:02:18.4]} 12...
Ba7 {[%clk 0:01:39.5]} 13. d3 {[%clk 0:01:47]} 13... d5 {[%clk 0:01:38.3]} 14.
exd5 {[%clk 0:01:39.7]} 14... Nxd5 {[%clk 0:01:39.2]} 15. h3 {[%clk 0:01:31.5]}
15... e6 {[%clk 0:01:17.9]} 16. Bxd5 {[%clk 0:01:09.5]} 16... exd5 {[%clk
0:00:54.1]} 17. Qe1 {[%clk 0:01:04.8]} 17... Bd7 {[%clk 0:00:40.9]} 18. Nd4+
{[%clk 0:01:00.4]} 18... Kf8 {[%clk 0:00:41.1]} 19. Qe5 {[%clk 0:00:38]} 19...
Rg8 {[%clk 0:00:33.9]} 20. f5 {[%clk 0:00:34.3]} 20... f6 {[%clk 0:00:27.9]} 21.
Bh6+ {[%clk 0:00:32.8]} 21... Rg7 {[%clk 0:00:22.9]} 22. fxg6 {[%clk 0:00:30]}
22... Kg8 {[%clk 0:00:13.8]} 23. Qxd5+ {[%clk 0:00:27.5]} 23... Kh8 {[%clk
0:00:08.3]} 24. Bxg7+ {[%clk 0:00:27.7]} 24... Kxg7 {[%clk 0:00:08.6]} 25. Qf7+
{[%clk 0:00:28.1]} 25... Kh6 {[%clk 0:00:09.2]} 26. Qxh7+ {[%clk 0:00:27.6]}
26... Kg5 {[%clk 0:00:09.4]} 27. Nf3+ {[%clk 0:00:20.6]} 27... Kf4 {[%clk
0:00:09.2]} 28. Qh6+ {[%clk 0:00:19.2]} 28... Kf5 {[%clk 0:00:06.6]} 29. Rae1
{[%clk 0:00:17.5]} 29... Qh8 {[%clk 0:00:04.5]} 30. g4# {[%clk 0:00:16]} 1-0

[Event "*** Titled Tuesday Blitz"]
[Site "Chess.com"]
[Date "2021.03.02"]
[Round "8"]
[White "Manukyan_Artak"]
[Black "Lyschko"]
[Result "1-0"]
[WhiteElo "2337"]
[BlackElo "2196"]
[TimeControl "180+1"]
[EndTime "11:29:38 PST"]
[Termination "Manukyan_Artak won by resignation"]

1. e4 {[%clk 0:02:57.8]} 1... Nf6 {[%clk 0:02:59.8]} 2. Nc3 {[%clk 0:02:56]}
2... d5 {[%clk 0:02:59]} 3. exd5 {[%clk 0:02:56.2]} 3... Nxd5 {[%clk 0:02:58.9]}
4. Bc4 {[%clk 0:02:56.7]} 4... Nb6 {[%clk 0:02:58.6]} 5. Bb3 {[%clk 0:02:56.3]}
5... Nc6 {[%clk 0:02:57.9]} 6. Qf3 {[%clk 0:02:56.1]} 6... e6 {[%clk 0:02:51.3]}
7. Nge2 {[%clk 0:02:55.5]} 7... Be7 {[%clk 0:02:49.4]} 8. h4 {[%clk 0:02:54.3]}
8... h5 {[%clk 0:02:45.7]} 9. d4 {[%clk 0:02:52.6]} 9... Nxd4 {[%clk 0:02:41.6]}
10. Nxd4 {[%clk 0:02:52]} 10... Qxd4 {[%clk 0:02:41.3]} 11. Bf4 {[%clk 0:02:39]}
11... Bd6 {[%clk 0:02:26.2]} 12. Bxd6 {[%clk 0:02:30.7]} 12... Qxd6 {[%clk
0:02:24.7]} 13. Ne4 {[%clk 0:02:25.8]} 13... Qe5 {[%clk 0:02:19.2]} 14. O-O-O
{[%clk 0:02:23.3]} 14... Bd7 {[%clk 0:02:12]} 15. Ng5 {[%clk 0:02:16.9]} 15...
Qf6 {[%clk 0:02:04.4]} 16. Qxb7 {[%clk 0:02:14.7]} 16... O-O {[%clk 0:01:51.2]}
17. Qf3 {[%clk 0:01:36.9]} 17... Qxf3 {[%clk 0:01:40.2]} 18. Nxf3 {[%clk
0:01:35.4]} 18... Bc6 {[%clk 0:01:39.8]} 19. Rhg1 {[%clk 0:01:34.3]} 19... a5
{[%clk 0:01:39.2]} 20. a3 {[%clk 0:01:32.6]} 20... a4 {[%clk 0:01:38.3]} 21. Ba2
{[%clk 0:01:32.8]} 21... Rad8 {[%clk 0:01:33.7]} 22. Ne5 {[%clk 0:01:32.6]}
22... Be4 {[%clk 0:01:28.9]} 23. f3 {[%clk 0:01:28.4]} 23... Bf5 {[%clk
0:01:27.1]} 24. Nc6 {[%clk 0:01:20.9]} 24... Rd6 {[%clk 0:01:23.8]} 25. Ne7+
{[%clk 0:01:18.6]} 25... Kh8 {[%clk 0:01:20.4]} 26. Nxf5 {[%clk 0:01:18.6]}
26... exf5 {[%clk 0:01:20.2]} 27. Rxd6 {[%clk 0:01:19]} 27... cxd6 {[%clk
0:01:20]} 28. Rd1 {[%clk 0:01:19.4]} 28... Nc8 {[%clk 0:01:08]} 29. Rd4 {[%clk
0:01:01.2]} 29... g6 {[%clk 0:01:02.6]} 30. Rxa4 {[%clk 0:01:00.5]} 30... Kg7
{[%clk 0:01:02.3]} 31. Ra8 {[%clk 0:00:59.6]} 31... Re8 {[%clk 0:01:01.8]} 32.
Kd2 {[%clk 0:00:59.6]} 32... f4 {[%clk 0:00:53]} 33. b4 {[%clk 0:00:52]} 33...
d5 {[%clk 0:00:48.3]} 34. Bxd5 {[%clk 0:00:48]} 34... Rd8 {[%clk 0:00:47.9]} 35.
c4 {[%clk 0:00:47.7]} 35... Kf6 {[%clk 0:00:43.9]} 36. Kc3 {[%clk 0:00:45]}
36... Ke5 {[%clk 0:00:39.2]} 37. a4 {[%clk 0:00:42.7]} 37... f6 {[%clk
0:00:33.8]} 38. a5 {[%clk 0:00:42.3]} 38... g5 {[%clk 0:00:33.2]} 39. hxg5
{[%clk 0:00:42.6]} 39... fxg5 {[%clk 0:00:33.1]} 40. Bb7 {[%clk 0:00:33.9]}
40... Rd1 {[%clk 0:00:24.5]} 41. Rxc8 {[%clk 0:00:32.3]} 41... Rg1 {[%clk
0:00:23.6]} 42. a6 {[%clk 0:00:32.1]} 42... Rxg2 {[%clk 0:00:23.5]} 43. a7
{[%clk 0:00:32.4]} 1-0

[Event "*** Titled Tuesday Blitz"]
[Site "Chess.com"]
[Date "2021.03.02"]
[Round "8"]
[White "francyIM"]
[Black "anon481216"]
[Result "1-0"]
[WhiteElo "2704"]
[BlackElo "2495"]
[TimeControl "180+1"]
[EndTime "11:29:40 PST"]
[Termination "francyIM won by resignation"]

1. e4 {[%clk 0:01:50.9]} 1... c5 {[%clk 0:02:59.4]} 2. Nf3 {[%clk 0:01:50.6]}
2... e6 {[%clk 0:02:59.5]} 3. c3 {[%clk 0:01:51.1]} 3... d5 {[%clk 0:02:58.9]}
4. exd5 {[%clk 0:01:52]} 4... Qxd5 {[%clk 0:02:59.2]} 5. d4 {[%clk 0:01:51.8]}
5... Nf6 {[%clk 0:02:58.6]} 6. Be3 {[%clk 0:01:49]} 6... cxd4 {[%clk 0:02:47.3]}
7. Qxd4 {[%clk 0:01:40.2]} 7... Nc6 {[%clk 0:02:43]} 8. Qxd5 {[%clk 0:01:26.6]}
8... Nxd5 {[%clk 0:02:42.6]} 9. Bd2 {[%clk 0:01:26.4]} 9... Be7 {[%clk
0:02:36.5]} 10. a3 {[%clk 0:01:25.2]} 10... f6 {[%clk 0:02:26]} 11. c4 {[%clk
0:01:24.4]} 11... Nb6 {[%clk 0:02:25.9]} 12. Nc3 {[%clk 0:01:16.1]} 12... Kf7
{[%clk 0:02:25.3]} 13. Be2 {[%clk 0:01:11.6]} 13... Rd8 {[%clk 0:02:20.1]} 14.
b4 {[%clk 0:01:08.4]} 14... e5 {[%clk 0:02:00.7]} 15. c5 {[%clk 0:01:04.1]}
15... Nd7 {[%clk 0:01:51.9]} 16. Bc4+ {[%clk 0:00:55.8]} 16... Kf8 {[%clk
0:01:47.3]} 17. Nd5 {[%clk 0:00:56]} 17... Nd4 {[%clk 0:01:33.5]} 18. Nxd4
{[%clk 0:00:54.4]} 18... exd4 {[%clk 0:01:33.5]} 19. Nxe7 {[%clk 0:00:54.8]}
19... Kxe7 {[%clk 0:01:32.8]} 20. f4 {[%clk 0:00:55.2]} 20... Nb8 {[%clk
0:01:29.9]} 21. Kf2 {[%clk 0:00:51]} 21... Nc6 {[%clk 0:01:28.4]} 22. Rhe1+
{[%clk 0:00:51.6]} 22... Kf8 {[%clk 0:01:28.4]} 23. b5 {[%clk 0:00:51.4]} 23...
Ne7 {[%clk 0:01:28.5]} 24. c6 {[%clk 0:00:51.3]} 24... Nd5 {[%clk 0:01:03.8]}
25. Re4 {[%clk 0:00:38.5]} 25... bxc6 {[%clk 0:00:44.3]} 26. bxc6 {[%clk
0:00:39.1]} 26... d3 {[%clk 0:00:44.6]} 27. Rd4 {[%clk 0:00:36.3]} 27... Be6
{[%clk 0:00:41.9]} 28. Re1 {[%clk 0:00:30]} 28... Bf7 {[%clk 0:00:39.6]} 29. c7
{[%clk 0:00:25.6]} 29... Rd7 {[%clk 0:00:31.9]} 30. Bb4+ {[%clk 0:00:22.4]}
30... Kg8 {[%clk 0:00:31]} 31. Rxd3 {[%clk 0:00:20.4]} 31... Rc8 {[%clk
0:00:23.9]} 32. Red1 {[%clk 0:00:20.4]} 32... Rdxc7 {[%clk 0:00:14.1]} 33. Bxd5
{[%clk 0:00:19.6]} 33... Bxd5 {[%clk 0:00:14.5]} 34. Rxd5 {[%clk 0:00:20.5]}
34... Rc2+ {[%clk 0:00:14.5]} 35. R1d2 {[%clk 0:00:21]} 1-0